bitfinex/quotes_ETHUSD_20220123
["timestamp","ask_amount","ask_price","bid_price","bid_amount"]
[1642940250880,1.1407,2493.0,2491.9,0.17639994]
[1642940252140,1.1407,2493.0,2492.0,18.14413884]
[1642940252344,3.0358,2493.4,2492.0,18.1816448]
[1642940252541,3.0358,2493.4,2492.1,36.28588709]
[1642940252742,3.0358,2493.4,2492.2,0.02676176]
[1642940253343,3.0358,2493.4,2492.5,1.09193059]
[1642940253543,3.0358,2493.4,2492.6,0.02358436]
[1642940255778,3.0358,2493.4,2492.5,1.69193059]
[1642940255980,3.0358,2493.4,2492.5,0.6]
[1642940256178,3.0358,2493.4,2492.5,0.3]
[1642940256380,3.0358,2493.4,2492.3,1.3]
[1642940256679,3.0358,2493.4,2492.4,0.03337734]
[1642940257080,12.4967,2494.1,2492.5,34.99392484]
[1642940257283,16.7668,2494.1,2492.6,4.92517292]
[1642940257484,16.7668,2494.1,2492.7,0.00824423]
[1642940257682,16.7668,2494.1,2492.6,6.41338584]
[1642940257882,16.7668,2494.1,2493.2,1.15474109]
[1642940258182,14.38183516,2494.1,2492.6,7.23401594]
[1642940258384,14.38183516,2494.1,2492.6,3.017]
[1642940258782,13.0308,2494.1,2492.7,17.52787721]
[1642940259184,13.0308,2494.1,2492.8,1.0]
[1642940259435,13.0308,2494.1,2492.8,1.6]
[1642940259637,13.0308,2494.1,2492.8,2.4798]
[1642940259836,1.35059011,2494.0,2492.8,2.4798]
[1642940260043,1.35059011,2494.0,2492.9,1.14052527]
[1642940260337,13.0308,2494.1,2492.9,1.14052527]
[1642940260946,13.0308,2494.1,2493.0,0.00784413]
[1642940261149,13.0308,2494.1,2492.9,1.14052527]
[1642940262147,5.4572,2494.1,2493.0,56.03293954]
[1642940262347,7.8359,2494.6,2493.1,0.03609106]
[1642940262553,7.8359,2494.6,2493.6,1.37973652]
[1642940262554,12.3002,2494.6,2493.6,1.37973652]
[1642940262750,12.3002,2494.6,2493.2,4.54803554]
[1642940262751,4.5643,2494.6,2493.2,4.54803554]
[1642940262948,1.3082,2494.6,2493.2,17.83376017]
[1642940263189,1.3082,2494.6,2493.4,0.01468371]
[1642940263476,0.1,2494.6,2493.3,1.03291942]
[1642940263676,0.1,2494.6,2493.3,2.49711823]
[1642940263877,0.06,2494.6,2493.3,2.49711823]
[1642940264080,1.24663881,2494.4,2493.3,2.49711823]
[1642940264278,1.24663881,2494.4,2493.3,1.0]
[1642940264478,0.06,2494.6,2493.3,1.0340581]
[1642940264678,0.06,2494.6,2493.3,1.0]
[1642940264882,0.06,2494.6,2493.3,1.03700344]
[1642940265483,0.06,2494.6,2493.8,1.22000012]
[1642940265688,5.0854,2495.1,2493.9,0.13819997]
[1642940265886,5.0854,2495.1,2494.0,16.61605131]
[1642940266085,5.0854,2495.1,2494.1,0.01943018]
[1642940266286,5.0854,2495.1,2494.0,0.6]
[1642940266485,5.0854,2495.1,2494.0,0.3]
[1642940266784,1.35813153,2494.7,2493.9,0.43819997]
[1642940267036,5.0854,2495.1,2493.9,0.73819997]
[1642940267440,5.0854,2495.1,2493.9,0.43819997]
[1642940267641,1.54177103,2494.9,2493.9,0.73819997]
[1642940268039,1.44751317,2494.6,2493.9,0.43819997]
[1642940268240,1.44751317,2494.6,2493.9,0.13819997]
[1642940268639,1.44751317,2494.6,2493.7,0.07819997]
[1642940269242,5.19481317,2494.6,2493.7,0.07819997]
[1642940269641,3.7473,2494.6,2493.7,0.07819997]
[1642940270687,5.19958227,2494.6,2493.7,0.07819997]
[1642940271081,1.36469035,2494.5,2493.7,0.07819997]
[1642940274183,2.84045838,2494.5,2493.7,0.07819997]
[1642940274423,1.36469035,2494.5,2493.7,0.07819997]
[1642940274627,1.1563,2494.4,2493.7,0.07819997]
[1642940275625,1.1563,2494.4,2493.2,1.40074414]
[1642940275829,1.1563,2494.4,2493.1,0.13819997]
[1642940275830,2.1563,2494.4,2493.1,0.13819997]
[1642940277237,1.15089943,2494.1,2493.1,0.13819997]
[1642940277635,2.1563,2494.4,2493.1,0.13819997]
[1642940278039,1.1563,2494.4,2493.1,0.13819997]
[1642940278678,1.53784897,2494.3,2493.1,1.66698978]
[1642940279079,2.53784897,2494.3,2493.1,0.13819997]
[1642940279283,6.91564081,2494.3,2493.0,3.8349]
[1642940279484,7.21564081,2494.3,2493.0,3.8349]
[1642940279683,3.13784897,2494.3,2493.0,3.8349]
[1642940280183,0.19693,2494.2,2493.0,3.8349]
[1642940280383,1.28499321,2493.8,2493.0,3.8349]
[1642940280591,1.28499321,2493.8,2492.8,0.07819997]
[1642940282829,4.91723,2494.2,2492.8,0.07819997]
[1642940283032,5.21723,2494.2,2492.8,0.07819997]
[1642940283237,1.1692896,2493.6,2492.4,3.7314]
[1642940283737,1.1692896,2493.6,2492.3,0.13819997]
[1642940283738,1.4692896,2493.6,2492.3,0.13819997]
[1642940283935,2.5995896,2493.6,2492.3,0.13819997]
[1642940284134,5.11278475,2493.5,2492.3,0.13819997]
[1642940284335,5.11278475,2493.5,2492.1,3.7008]
[1642940284336,1.54130421,2492.8,2492.1,3.7008]
[1642940284635,1.54130421,2492.8,2492.0,7.48]
[1642940285438,1.54130421,2492.8,2491.8,3.8948]
[1642940285439,3.09228145,2492.8,2491.8,3.8948]
[1642940285689,3.09228145,2492.8,2491.7,0.01258167]
[1642940285690,1.0,2492.7,2491.7,0.01258167]
[1642940285890,6.1394,2492.7,2491.7,0.01258167]
[1642940286288,6.1394,2492.7,2491.4,0.02]
[1642940286487,1.22096015,2492.4,2491.4,0.02]
[1642940287489,1.26744702,2492.0,2491.4,0.02]
[1642940287888,4.4089,2492.3,2491.4,0.02]
[1642940288286,4.4089,2492.3,2491.4,0.01882039]
[1642940289088,1.30632265,2492.2,2491.4,0.01882039]
[1642940291634,1.20584798,2492.0,2491.4,0.01882039]
[1642940291834,1.30632265,2492.2,2491.4,0.01882039]
[1642940292834,2.74015605,2492.2,2491.4,0.01882039]
[1642940293035,1.30632265,2492.2,2491.4,0.01882039]
[1642940294081,1.34359992,2492.1,2491.4,0.01882039]
[1642940296686,1.22328082,2491.7,2491.4,0.01882039]
[1642940301587,3.7727,2491.9,2491.4,0.01882039]
[1642940302684,1.18484606,2491.8,2491.4,0.01882039]
[1642940302884,1.13079818,2491.7,2491.4,0.01882039]
[1642940303082,3.7727,2491.9,2491.4,0.01882039]
[1642940304431,1.31241887,2491.8,2491.4,0.01882039]
[1642940305032,3.7727,2491.9,2491.4,0.01882039]
[1642940305637,1.2174,2492.0,2491.4,0.01882039]
[1642940307242,3.7298,2492.2,2491.5,0.01835881]
[1642940307440,1.1915,2492.5,2491.5,0.01835881]
[1642940308040,1.1915,2492.5,2491.5,1.31835881]
[1642940308288,1.1915,2492.5,2491.5,1.61835881]
[1642940308289,2.57566784,2492.5,2491.5,1.61835881]
[1642940308689,1.1915,2492.5,2491.5,1.61835881]
[1642940309787,2.62458941,2492.5,2491.5,1.61835881]
[1642940311190,2.62458941,2492.5,2491.5,1.6]
[1642940311592,2.62458941,2492.5,2491.5,0.6]
[1642940311793,2.62458941,2492.5,2491.4,8.09882039]
[1642940312733,2.62458941,2492.5,2491.4,8.09793507]
[1642940314341,1.24112521,2492.1,2491.4,7.79882039]
[1642940314547,1.24112521,2492.1,2491.4,7.49882039]
[1642940314548,0.00327055,2492.0,2491.4,7.49882039]
[1642940314942,1.24112521,2492.1,2491.4,7.49882039]
[1642940315143,1.24112521,2492.1,2491.4,0.01882039]
[1642940315991,1.1941,2492.2,2491.4,0.01882039]
[1642940317094,2.28309739,2492.2,2491.4,0.01882039]
[1642940318489,1.1941,2492.2,2491.4,0.01882039]
[1642940322641,1.1941,2492.2,2491.5,3.41350083]
[1642940322843,1.1941,2492.2,2491.4,0.01882039]
[1642940323043,1.1941,2492.2,2491.5,0.3]
[1642940323302,3.029,2492.3,2491.5,0.3]
[1642940323502,3.029,2492.3,2491.4,0.01882039]
[1642940323705,3.029,2492.3,2491.5,3.41347743]
[1642940324203,3.029,2492.3,2491.4,0.01882039]
[1642940324406,1.36264846,2491.9,2491.4,0.01882039]
[1642940324808,1.1579,2492.2,2491.4,0.01882039]
[1642940325208,1.18371041,2492.0,2491.4,0.01882039]
[1642940326310,1.17346386,2491.9,2491.4,0.01882039]
[1642940326937,1.18371041,2492.0,2491.4,0.01882039]
[1642940327142,1.1579,2492.2,2491.4,0.01882039]
[1642940327944,1.1579,2492.2,2491.5,3.41377836]
[1642940328143,2.67009386,2492.2,2491.5,3.41377836]
[1642940328342,1.29977379,2492.1,2491.4,0.01882039]
[1642940329143,2.67009386,2492.2,2491.4,0.01882039]
[1642940330149,3.90495646,2492.2,2491.4,0.01882039]
[1642940331387,2.39153632,2492.2,2491.4,0.01882039]
[1642940331587,1.15667372,2492.2,2491.4,0.01882039]
[1642940332388,1.38884948,2492.1,2491.4,0.01882039]
[1642940332992,1.15667372,2492.2,2491.4,0.01882039]
[1642940333892,1.17907213,2492.1,2491.4,0.01882039]
[1642940334738,1.15667372,2492.2,2491.4,0.01882039]
[1642940339796,1.15667372,2492.2,2491.5,3.41371292]
[1642940340195,1.15667372,2492.2,2491.4,0.01882039]
[1642940341939,1.43816666,2491.9,2491.4,0.01882039]
[1642940343742,1.15667372,2492.2,2491.4,0.01882039]
[1642940345549,1.27503618,2491.9,2491.4,0.01882039]
[1642940348101,1.15667372,2492.2,2491.4,0.01882039]
[1642940349437,1.32166905,2491.8,2491.4,0.01882039]
[1642940350442,0.01898515,2491.7,2491.4,0.01882039]
[1642940350643,1.32166905,2491.8,2491.4,0.01882039]
[1642940351442,1.15667372,2492.2,2491.4,0.01882039]
[1642940352945,1.09464333,2492.0,2491.4,0.01882039]
[1642940354890,1.09464333,2492.0,2491.4,0.01773278]
[1642940356296,1.1435,2491.9,2491.4,0.01773278]
[1642940358646,1.09464333,2492.0,2491.4,0.01773278]
[1642940362894,4.44636662,2492.3,2491.4,0.01773278]
[1642940363894,3.029,2492.3,2491.4,0.01773278]
[1642940364437,1.52039653,2492.0,2491.5,3.41372788]
[1642940364641,1.52039653,2492.0,2491.4,0.01773278]
[1642940365844,2.83633223,2492.0,2491.4,0.01773278]
[1642940372835,1.2313,2491.9,2491.4,0.01773278]
[1642940373435,2.8313,2491.9,2491.4,0.01773278]
[1642940373643,5.06333642,2491.8,2491.4,0.01773278]
[1642940373840,5.36333642,2491.8,2491.4,0.01773278]
[1642940374039,1.0,2491.7,2491.4,0.01773278]
[1642940374241,4.11506841,2491.6,2491.4,0.01773278]
[1642940374640,6.3,2491.5,2491.4,0.01773278]
[1642940374840,6.3,2491.5,2491.4,3.278e-05]
[1642940374841,10.55453015,2491.5,2491.4,3.278e-05]
[1642940375043,1.3204929,2490.7,2490.6,0.02]
[1642940376294,2.86316957,2490.7,2490.6,0.02]
[1642940377292,1.54267667,2490.7,2490.6,0.02]
[1642940378096,7.89267667,2490.7,2490.6,0.02]
[1642940378298,9.19322192,2490.7,2490.6,0.02]
[1642940379535,2.84322192,2490.7,2490.6,0.02]
[1642940379733,2.84322192,2490.7,2490.6,0.0001]
[1642940379933,5.69322192,2490.7,2490.6,0.0001]
[1642940380137,2.84322192,2490.7,2490.6,0.0001]
[1642940380335,1.54267667,2490.7,2490.6,0.0001]
[1642940380940,4.59267667,2490.7,2490.6,0.0001]
[1642940381343,5.92912038,2490.7,2490.6,0.0001]
[1642940382141,11.15839271,2490.7,2490.6,0.0001]
[1642940384689,11.15839271,2490.7,2490.5,0.02]
[1642940384690,7.35,2490.6,2490.3,0.02]
[1642940384891,7.25,2490.4,2489.5,0.02]
[1642940385092,1.4536325,2490.2,2489.5,0.02]
[1642940385293,4.52333948,2490.1,2489.5,0.02]
[1642940385491,1.4536325,2490.2,2489.5,0.02]
[1642940386702,3.79693,2490.1,2489.5,0.02]
[1642940386934,8.00257421,2490.1,2489.5,0.02]
[1642940387135,1.0,2490.0,2489.5,0.02]
[1642940387536,5.71243,2490.1,2489.5,0.02]
[1642940387734,1.2560411,2490.0,2489.5,0.02]
[1642940388340,4.1528327,2489.9,2489.5,0.02]
[1642940388740,2.2560411,2490.0,2489.5,0.02]
[1642940389445,1.0978486,2489.7,2489.5,0.02]
[1642940393501,7.4,2489.6,2489.5,0.0001]
[1642940393699,11.71328546,2489.6,2489.5,0.0001]
[1642940393900,12.71328546,2489.6,2489.5,0.0001]
[1642940394199,8.4,2489.6,2489.5,0.0001]
[1642940394454,3.5,2489.6,2489.5,0.0001]
[1642940394648,9.04139523,2489.6,2489.5,0.0001]
[1642940394846,8.04139523,2489.6,2489.5,0.0001]
[1642940395046,9.04139523,2489.6,2489.5,0.0001]
[1642940395745,9.34139523,2489.6,2489.5,0.0001]
[1642940396147,4.69693,2489.6,2489.5,0.0001]
[1642940396550,4.99693,2489.6,2489.5,0.0001]
[1642940396847,31.97693,2489.6,2489.5,0.0001]
[1642940397048,4.5,2489.6,2489.5,0.0001]
[1642940397451,3.5,2489.6,2489.5,0.0001]
[1642940397850,6.45,2489.6,2489.5,0.0001]
[1642940398688,3.5,2489.6,2489.5,0.0001]
[1642940398891,4.5,2489.6,2489.5,0.0001]
[1642940399290,4.99693,2489.6,2489.5,0.0001]
[1642940399495,7.4,2489.5,2488.6,7.48]
[1642940399697,0.0125273,2488.8,2488.3,1.1399625]
[1642940399897,0.0125273,2488.8,2488.3,6.25e-05]
[1642940399898,7.4,2488.6,2488.3,6.25e-05]
[1642940400094,0.20949843,2488.4,2487.3,1.36322259]
[1642940400293,1.1351092,2487.5,2487.3,3.36322259]
[1642940400491,1.49707869,2487.9,2487.7,2.2702184]
[1642940400692,0.19693,2487.8,2487.7,2.2702184]
[1642940400893,3.9,2487.7,2487.3,3.36322259]
[1642940401094,3.9,2487.7,2486.1,1.44096033]
[1642940401095,0.3,2487.7,2486.1,1.44096033]
[1642940401294,1.0,2487.6,2486.2,3.41908816]
[1642940401494,1.49693,2487.6,2486.2,3.41908816]
[1642940401697,0.3120404,2487.7,2486.3,3.41908816]
[1642940401698,1.3120404,2487.7,2486.3,3.41908816]
[1642940401946,1.3,2487.7,2487.2,1.09994112]
[1642940402140,1.3,2487.7,2487.2,0.89994112]
[1642940402741,4.19693,2487.6,2486.0,5.30719997]
[1642940402942,1.4143198,2487.0,2486.1,3.41944456]
[1642940403342,1.0,2487.5,2486.1,3.41944456]
[1642940403343,5.17500389,2487.5,2486.1,3.41944456]
[1642940403543,0.19693,2487.4,2486.1,3.41944456]
[1642940403743,0.19693,2487.4,2485.9,0.09043174]
[1642940403744,0.19693,2487.4,2486.0,3.41944456]
[1642940403943,3.6672,2487.4,2486.1,3.41944456]
[1642940404146,3.6672,2487.4,2486.3,0.38246688]
[1642940404344,8.11,2487.6,2486.3,0.38246688]
[1642940404345,4.4362,2487.6,2486.3,0.38246688]
[1642940404546,4.4362,2487.6,2486.5,0.01298389]
[1642940404749,3.2935,2487.6,2486.6,3.41944456]
[1642940404948,3.2935,2487.6,2486.7,3.69961892]
[1642940405150,5.43203,2488.1,2486.6,4.01944456]
[1642940405346,5.43203,2488.1,2486.6,0.6]
[1642940405552,1.25043739,2487.6,2486.6,1.0]
[1642940405792,5.43203,2488.1,2486.7,3.69961892]
[1642940405994,5.43203,2488.1,2486.8,3.41914603]
[1642940406197,5.43203,2488.1,2486.7,4.29961892]
[1642940406798,1.16689227,2487.9,2486.7,4.29961892]
[1642940407194,1.16689227,2487.9,2486.7,3.99961892]
[1642940407394,5.43203,2488.1,2486.9,1.37867584]
[1642940407395,5.2351,2488.1,2486.9,1.37867584]
[1642940407597,4.3707,2488.2,2487.1,0.01217121]
[1642940407803,6.3371823,2488.7,2487.1,0.31217121]
[1642940408001,17.4466,2488.7,2487.1,1.61217121]
[1642940408194,17.4466,2488.7,2487.2,3.69961892]
[1642940408396,2.6324154,2488.6,2487.2,3.69961892]
[1642940409449,2.6324154,2488.6,2487.3,1.37558909]
[1642940409638,2.6324154,2488.6,2487.2,3.69961892]
[1642940409839,12.3333,2488.7,2487.2,3.69961892]
[1642940410037,12.3333,2488.7,2487.3,0.6]
[1642940410240,4.3961,2488.7,2487.4,37.81286516]
[1642940410742,4.3961,2488.7,2487.4,20.31567023]
[1642940410942,5.57672579,2488.7,2487.6,1.32372266]
[1642940411543,5.57672579,2488.7,2487.4,20.31567023]
[1642940411945,1.01209413,2488.6,2487.1,0.01217121]
[1642940412143,1.01209413,2488.6,2486.7,3.82249013]
[1642940412144,0.01209413,2488.6,2486.7,3.82249013]
[1642940412344,0.01209413,2488.6,2486.8,3.43077975]
[1642940412543,0.01209413,2488.6,2486.9,9.45470134]
[1642940412743,0.01209413,2488.6,2487.0,3.41866704]
[1642940412945,0.01209413,2488.6,2487.1,5.97712317]
[1642940413197,3.6853,2488.9,2487.9,1.38222481]
[1642940413198,0.06,2488.9,2487.9,1.38222481]
[1642940413396,3.70862374,2489.2,2488.0,3.75541181]
[1642940413593,3.70862374,2489.2,2488.1,1.0]
[1642940413793,3.70862374,2489.2,2488.2,3.69961892]
[1642940413794,0.01272374,2489.2,2488.2,3.69961892]
[1642940413994,1.2551215,2489.7,2488.3,0.01347202]
[1642940414192,1.2551215,2489.7,2488.4,0.13819997]
[1642940414393,1.52419672,2489.7,2488.6,1.22694739]
[1642940414593,1.52419672,2489.7,2488.6,1.52694739]
[1642940414793,1.52419672,2489.7,2488.6,0.6]
[1642940414995,1.52419672,2489.7,2488.4,4.13781889]
[1642940414996,1.53633863,2489.7,2488.4,4.13781889]
[1642940415295,0.03774,2489.6,2488.4,0.73819997]
[1642940415495,3.02222627,2489.7,2488.5,1.0]
[1642940415701,3.02222627,2489.7,2488.4,1.73819997]
[1642940416095,1.34427368,2489.3,2488.4,4.57951511]
[1642940416295,0.01214191,2489.7,2488.5,3.72219689]
[1642940416495,0.01214191,2489.7,2488.5,4.72219689]
[1642940416697,0.01214191,2489.7,2488.5,3.72219689]
[1642940417145,0.01214191,2489.7,2488.6,1.0]
[1642940417346,0.01214191,2489.7,2488.7,5.75993126]
[1642940418650,1.28964236,2489.8,2488.7,5.75993126]
[1642940418947,1.25190236,2489.8,2488.7,5.75993126]
[1642940419347,1.25190236,2489.8,2488.6,0.6]
[1642940419550,4.27320324,2489.7,2488.4,0.13819997]
[1642940419748,2.06173819,2489.8,2488.4,0.13819997]
[1642940419749,1.29090575,2489.1,2488.4,0.13819997]
[1642940419949,1.29090575,2489.1,2487.9,0.07819997]
[1642940419950,0.49693,2489.1,2487.9,0.07819997]
[1642940420148,0.03776,2489.0,2487.9,0.07819997]
[1642940420351,1.13346511,2488.6,2487.9,0.07819997]
[1642940420548,0.03776,2489.0,2488.7,2.26693021]
[1642940420999,1.49476527,2488.9,2488.7,2.26693021]
[1642940421197,1.49476527,2488.9,2488.7,3.021e-05]
[1642940421198,5.33469,2488.8,2488.7,3.021e-05]
[1642940421395,9.5324797,2488.8,2488.7,3.021e-05]
[1642940421595,34.7860797,2488.8,2488.7,3.021e-05]
[1642940421795,30.58829,2488.8,2488.7,3.021e-05]
[1642940421995,7.25829,2488.8,2488.7,3.021e-05]
[1642940422595,2.15829,2488.8,2488.7,3.021e-05]
[1642940422795,1.23469,2488.8,2488.7,3.021e-05]
[1642940422999,0.23469,2488.8,2488.7,3.021e-05]
[1642940423397,4.47118329,2488.8,2488.7,3.021e-05]
[1642940423605,35.70118329,2488.8,2488.7,3.021e-05]
[1642940423799,12.37118329,2488.8,2488.7,3.021e-05]
[1642940424002,8.13469,2488.8,2488.7,3.021e-05]
[1642940424844,9.33569,2488.8,2488.7,3.021e-05]
[1642940425043,9.13876,2488.8,2488.7,3.021e-05]
[1642940425245,9.101,2488.8,2488.7,3.021e-05]
[1642940425445,9.59793,2488.8,2488.7,3.021e-05]
[1642940426256,2.69793,2488.8,2488.7,3.021e-05]
[1642940427452,6.001,2488.8,2488.7,3.021e-05]
[1642940427654,1.201,2488.8,2488.7,3.021e-05]
[1642940431505,5.101,2488.8,2488.7,3.021e-05]
[1642940431948,1.201,2488.8,2488.7,3.021e-05]
[1642940436992,1.201,2488.8,2488.7,1.20375598]
[1642940437193,1.201,2488.8,2488.7,3.021e-05]
[1642940437592,1.201,2488.8,2488.7,0.30003021]
[1642940438192,1.201,2488.8,2488.7,3.021e-05]
[1642940438393,1.201,2488.8,2488.7,1.26761739]
[1642940438597,0.0001,2488.8,2488.7,10.71378336]
[1642940438795,1.0,2490.0,2488.7,9.44619618]
[1642940438992,1.0,2490.0,2488.8,0.31336901]
[1642940439196,1.0,2490.0,2488.8,1.3]
[1642940439444,1.0,2490.0,2488.9,5.02920137]
[1642940439651,1.0,2490.0,2489.0,1.00488665]
[1642940439850,1.0,2490.0,2489.1,22.53198874]
[1642940440251,1.0,2490.0,2489.1,22.83198874]
[1642940440854,1.27863509,2489.8,2489.1,0.3]
[1642940441253,1.27863509,2489.8,2488.9,4.63973951]
[1642940441957,1.27863509,2489.8,2488.9,16.91605131]
[1642940442155,3.6902113,2489.7,2488.7,0.00503021]
[1642940442454,1.27863509,2489.8,2488.7,0.00503021]
[1642940442455,0.03745,2489.6,2488.7,0.00503021]
[1642940442653,0.03717,2489.7,2488.7,0.00503021]
[1642940443055,0.03717,2489.7,2488.8,1.12495015]
[1642940443291,0.03717,2489.7,2488.7,0.00503021]
[1642940444290,0.03717,2489.7,2488.7,1.49643143]
[1642940444596,2.72777534,2489.8,2488.8,0.3]
[1642940444992,1.1534873,2489.4,2488.7,0.30503021]
[1642940445796,1.15985505,2488.9,2488.7,0.00503021]
[1642940447053,0.03774,2489.5,2488.7,0.00503021]
[1642940447455,1.17399,2489.6,2488.7,0.00503021]
[1642940448058,1.30251198,2489.1,2488.7,0.00503021]
[1642940449061,1.17399,2489.6,2488.7,0.00503021]
[1642940449257,0.03659,2489.6,2488.7,0.00503021]
[1642940449657,1.0,2490.0,2488.7,0.00503021]
[1642940449658,0.03545,2489.9,2488.7,0.00503021]
[1642940450557,1.0,2490.0,2488.7,0.00503021]
[1642940450801,1.0,2490.0,2488.7,4.58317906]
[1642940450999,1.0,2490.0,2488.7,0.00503021]
[1642940451198,1.0,2490.0,2488.9,1.52999499]
[1642940451401,1.0,2490.0,2488.9,2.12999499]
[1642940452998,1.0,2490.0,2489.3,1.5443933]
[1642940453398,1.0,2490.0,2489.3,2.1443933]
[1642940455640,1.0,2490.0,2489.3,0.6]
[1642940456143,1.0,2490.0,2489.0,1.6]
[1642940456942,1.0,2490.0,2489.1,1.25257783]
[1642940457347,2.18592867,2490.0,2489.0,1.6]
[1642940457552,1.0,2490.0,2489.0,1.6]
[1642940458995,1.0,2490.0,2488.9,3.8592]
[1642940459194,1.0,2490.0,2488.7,16.62108152]
[1642940459394,1.0,2490.0,2489.1,1.50817419]
[1642940460206,1.0,2490.0,2489.1,10.90536912]
[1642940460401,1.0,2490.0,2489.1,11.20536912]
[1642940460702,1.0,2490.0,2489.6,1.54294957]
[1642940460901,1.0,2490.0,2489.6,2.14294957]
[1642940461306,1.0,2490.0,2489.6,2.67254957]
[1642940461704,1.2263,2490.5,2489.6,2.67254957]
[1642940461705,0.0377,2490.5,2490.3,0.02143807]
[1642940461954,0.03765,2491.1,2490.3,4.23427441]
[1642940462144,0.03765,2491.1,2489.7,17.6353949]
[1642940462145,0.03769,2491.2,2489.8,8.60170467]
[1642940462345,0.03769,2491.2,2489.7,0.43819997]
[1642940462749,1.23583055,2490.8,2489.8,3.75705889]
[1642940462946,1.23583055,2490.8,2489.8,3.68276622]
[1642940463144,1.23583055,2490.8,2489.8,4.06206962]
[1642940463346,1.23583055,2490.8,2489.8,4.21666535]
[1642940463549,1.23583055,2490.8,2489.8,1.31845879]
[1642940463750,2.3576776,2490.8,2489.8,1.31845879]
[1642940463950,0.03774,2490.7,2489.8,1.61845879]
[1642940464151,2.3576776,2490.8,2489.8,1.61845879]
[1642940464354,2.3576776,2490.8,2489.8,0.3]
[1642940464552,0.01267603,2490.7,2489.7,0.13819997]
[1642940464755,1.42471553,2490.4,2489.7,0.13819997]
[1642940465695,9.17090603,2490.7,2489.7,0.13819997]
[1642940465896,8.17090603,2490.7,2489.7,3.88291678]
[1642940466099,8.17090603,2490.7,2489.7,4.18291678]
[1642940466301,8.17090603,2490.7,2489.7,4.2976939]
[1642940466699,3.1182,2490.7,2489.8,1.0]
[1642940466897,5.18409,2491.2,2489.9,4.32676083]
[1642940467100,5.18409,2491.2,2489.9,4.62676083]
[1642940467702,1.38616083,2490.9,2489.8,0.3]
[1642940467901,1.39818636,2490.9,2489.7,0.43819997]
[1642940468110,1.52432481,2490.5,2489.7,0.13819997]
[1642940468501,0.03774,2490.8,2489.7,0.13819997]
[1642940468703,1.52339987,2490.8,2489.8,1.1210361]
[1642940468902,0.03774,2490.8,2489.8,1.1210361]
[1642940469104,0.03774,2490.8,2489.9,3.92882575]
[1642940469302,5.18399,2491.2,2489.9,3.92882575]
[1642940469551,6.32521289,2491.2,2489.9,3.92882575]
[1642940469949,1.40790748,2490.8,2489.8,1.1210361]
[1642940470151,0.03765,2490.9,2489.8,1.1210361]
[1642940470548,0.03765,2490.9,2489.7,0.13819997]
[1642940471151,1.53621508,2490.7,2489.7,0.13819997]
[1642940471348,4.98995,2490.9,2489.7,0.13819997]
[1642940471554,4.98995,2490.9,2490.0,1.40755035]
[1642940471748,4.9523,2490.9,2490.0,1.40755035]
[1642940471948,1.1859,2490.9,2490.0,1.40755035]
[1642940472351,1.1859,2490.9,2490.0,1.30755035]
[1642940473395,1.1859,2490.9,2490.0,1.90755035]
[1642940473793,1.1859,2490.9,2490.1,3.71731666]
[1642940474198,1.1859,2490.9,2490.2,16.61605131]
[1642940474599,1.1859,2490.9,2490.2,16.91605131]
[1642940474796,1.1859,2490.9,2490.2,17.21605131]
[1642940476401,1.1859,2490.9,2489.7,0.13819997]
[1642940476799,1.1859,2490.9,2489.7,3.87168391]
[1642940477046,2.27162857,2490.7,2489.7,5.07343864]
[1642940477446,1.1859,2490.9,2489.7,5.07343864]
[1642940477645,1.1859,2490.9,2489.8,0.95]
[1642940477846,1.1859,2490.9,2489.9,3.93214463]
[1642940478050,1.1859,2490.9,2489.9,4.53214463]
[1642940478655,1.1859,2490.9,2490.1,1.17361272]
[1642940478852,1.1859,2490.9,2490.1,1.47361272]
[1642940479052,1.1859,2490.9,2490.1,1.77361272]
[1642940479552,1.1859,2490.9,2490.1,0.3]
[1642940479751,1.1859,2490.9,2489.9,3.67113607]
[1642940479952,1.22607604,2490.8,2489.9,3.97113607]
[1642940480354,1.22607604,2490.8,2489.7,4.26790264]
[1642940480555,1.22607604,2490.8,2489.7,5.56790264]
[1642940481097,2.60235738,2490.8,2489.9,1.54992312]
[1642940481399,2.60235738,2490.8,2489.7,5.56790264]
[1642940481594,1.22607604,2490.8,2489.7,5.56790264]
[1642940482496,1.1859,2490.9,2489.7,22.18395395]
[1642940482696,0.0128065,2491.0,2489.7,18.35425128]
[1642940482900,9.89525447,2491.2,2489.8,3.67919034]
[1642940483100,9.89525447,2491.2,2489.9,1.0]
[1642940483497,9.89525447,2491.2,2489.9,1.6]
[1642940483696,9.89525447,2491.2,2490.2,1.09504519]
[1642940483904,5.94265447,2491.2,2490.2,1.09504519]
[1642940484103,5.94265447,2491.2,2490.2,1.69504519]
[1642940484749,5.94265447,2491.2,2490.2,22.1498059]
[1642940484750,4.8155,2491.2,2490.2,22.1498059]
[1642940484951,7.2578,2491.7,2490.4,0.03991413]
[1642940485250,12.1045,2491.7,2490.4,0.03991413]
[1642940485446,12.1045,2491.7,2490.4,3.71910447]
[1642940485651,12.1045,2491.7,2490.5,1.0]
[1642940485850,12.1045,2491.7,2490.8,1.15934344]
[1642940486052,12.1045,2491.7,2490.8,18.37539475]
[1642940486053,8.174,2491.7,2490.8,18.37539475]
[1642940486461,0.03774,2492.3,2490.9,3.67919034]
[1642940486659,1.1818,2492.3,2491.0,25.73195348]
[1642940486957,1.1818,2492.3,2491.0,18.21605131]
[1642940487360,0.32156181,2492.2,2490.9,0.1605]
[1642940487559,1.40038013,2491.4,2490.9,0.1605]
[1642940487759,1.40038013,2491.4,2490.5,3.67919034]
[1642940487957,1.3772677,2491.5,2490.4,1.09805381]
[1642940488195,2.01709594,2492.1,2490.5,3.67919034]
[1642940488196,0.03779,2492.0,2490.5,3.67919034]
[1642940488795,0.03779,2492.0,2490.5,20.89524165]
[1642940489001,2.01709594,2491.9,2490.6,1.0]
[1642940489198,2.01709594,2491.9,2490.8,1.52009241]
[1642940489199,4.68575823,2491.9,2490.8,1.52009241]
[1642940489597,4.68575823,2491.9,2490.8,1.6]
[1642940490200,4.68575823,2491.9,2490.9,3.64083282]
[1642940490401,1.85866369,2491.9,2490.9,3.64083282]
[1642940490800,1.43831843,2491.5,2490.8,0.6]
[1642940490999,0.4575436,2491.5,2490.7,0.6]
[1642940491199,0.4575436,2491.5,2490.6,3.6645527]
[1642940491399,0.4575436,2491.5,2490.5,16.61605131]